bitfinex/quotes_SOLUSD_20250930
["timestamp","ask_amount","ask_price","bid_price","bid_amount"]
[1759239269943,4.41926373,207.67,207.6,4.41926373]
[1759239270348,4.41926373,207.66,207.61,13.59559401]
[1759239270861,4.8155639,207.66,207.61,14.27559401]
[1759239271263,19.67785709,207.67,207.54,29.66]
[1759239271264,3.22003866,207.67,207.63,13.59559401]
[1759239271448,4.81543113,207.67,207.63,13.59559401]
[1759239271643,16.85376117,207.67,207.63,13.59559401]
[1759239271852,4.41926373,207.65,207.6,13.59559401]
[1759239272161,5.13926373,207.66,207.6,13.59559401]
[1759239272341,4.41926373,207.66,207.6,13.59559401]
[1759239272543,4.41926373,207.64,207.58,13.59559401]
[1759239272747,16.85690892,207.63,207.58,13.59559401]
[1759239272935,21.99617265,207.63,207.56,18.01485774]
[1759239273143,21.99617265,207.63,207.57,4.41926373]
[1759239273338,21.99617265,207.63,207.54,0.68]
[1759239273339,4.41926373,207.62,207.54,0.68]
[1759239273538,4.41926373,207.62,207.55,18.01485774]
[1759239273737,4.41926373,207.62,207.56,4.41926373]
[1759239273933,3.21148086,207.64,207.58,18.01485774]
[1759239274164,60.9358043,207.65,207.6,13.59559401]
[1759239274365,0.72,207.64,207.6,13.59559401]
[1759239274546,0.72,207.64,207.58,4.41926373]
[1759239274742,4.8161975,207.64,207.58,18.01485774]
[1759239274964,4.8161975,207.64,207.58,13.59559401]
[1759239275166,56.12,207.65,207.6,4.41926373]
[1759239275470,20.8,207.65,207.62,13.59559401]
[1759239275652,7.63490693,207.67,207.62,13.59559401]
[1759239275842,3.2156432,207.67,207.64,13.59559401]
[1759239276038,3.2156432,207.68,207.66,18.01485774]
[1759239276343,39.35914551,207.73,207.58,16.86087295]
[1759239276344,3.21522666,207.72,207.68,13.59559401]
[1759239276550,35.32,207.73,207.7,13.59559401]
[1759239276846,35.32,207.73,207.71,13.59559401]
[1759239277253,35.32,207.73,207.7,18.69485774]
[1759239277567,0.2,207.75,207.71,4.41926373]
[1759239277863,0.2,207.75,207.7,13.59559401]
[1759239278055,5.01362364,207.75,207.71,13.59559401]
[1759239278371,5.01362364,207.75,207.73,13.59559401]
[1759239278566,0.2,207.75,207.73,18.69485774]
[1759239278767,0.2,207.75,207.74,18.69485774]
[1759239279270,0.2,207.75,207.74,23.50856718]
[1759239279772,0.2,207.75,207.74,18.69485774]
[1759239280469,0.2,207.75,207.74,23.50856718]
[1759239281165,3.21614066,207.84,207.78,13.59559401]
[1759239281374,3.21614066,207.83,207.81,4.41926373]
[1759239281545,3.21614066,207.84,207.81,4.41926373]
[1759239281740,3.21614066,207.83,207.81,4.41926373]
[1759239282072,3.21614066,207.82,207.79,13.59559401]
[1759239282266,3.21614066,207.82,207.79,18.01485774]
[1759239282570,3.21614066,207.83,207.79,18.01485774]
[1759239282769,4.81208796,207.81,207.79,13.59559401]
[1759239282972,8.02822862,207.81,207.79,13.59559401]
[1759239283141,3.21614066,207.8,207.77,4.41926373]
[1759239283347,4.81208796,207.81,207.79,13.59559401]
[1759239283348,3.21614066,207.81,207.79,13.59559401]
[1759239283679,3.21614066,207.84,207.81,13.59559401]
[1759239283885,3.21614066,207.83,207.81,13.59559401]
[1759239284065,3.21614066,207.82,207.81,4.41926373]
[1759239284381,0.2,207.86,207.82,13.59559401]
[1759239284547,0.2,207.86,207.85,18.01485774]
[1759239285554,0.2,207.86,207.85,18.68485774]
[1759239285753,0.2,207.86,207.85,14.26559401]
[1759239286061,0.2,207.86,207.85,18.68485774]
[1759239286447,0.2,207.86,207.85,23.49601963]
[1759239286642,0.2,207.86,207.85,18.68485774]
[1759239288153,0.2,207.86,207.85,13.59559401]
[1759239288813,0.2,207.86,207.85,18.68485774]
[1759239289022,0.2,207.86,207.85,14.26559401]
[1759239289177,0.2,207.86,207.85,18.68485774]
[1759239290097,0.2,207.86,207.85,13.59559401]
[1759239290513,5.01093043,207.86,207.85,13.59559401]
[1759239290878,5.01093043,207.86,207.82,4.41926373]
[1759239291083,5.01093043,207.86,207.84,13.59559401]
[1759239292109,0.2,207.86,207.85,18.68485774]
[1759239292999,0.2,207.86,207.85,18.01485774]
[1759239294094,0.2,207.86,207.85,18.68485774]
[1759239294476,0.2,207.86,207.85,23.49601963]
[1759239295193,0.2,207.94,207.86,13.59559401]
[1759239295401,0.2,207.94,207.93,18.01485774]
[1759239295591,0.2,207.94,207.93,13.59559401]
[1759239295790,0.2,207.94,207.93,18.01485774]
[1759239296306,0.2,207.94,207.93,13.59559401]
[1759239297009,5.00907954,207.94,207.93,13.59559401]
[1759239297512,5.71907954,207.94,207.91,13.59559401]
[1759239297902,5.71907954,207.94,207.91,4.41926373]
[1759239298211,0.2,207.94,207.92,4.41926373]
[1759239298414,0.2,207.94,207.93,4.41926373]
[1759239298611,0.2,207.94,207.93,18.01485774]
[1759239299413,0.2,207.94,207.93,13.59559401]
[1759239299617,5.71907954,207.94,207.93,13.59559401]
[1759239299913,5.71907954,207.94,207.88,0.67]
[1759239300096,5.71907954,207.94,207.85,35.87]
[1759239300291,0.71,207.93,207.89,4.41926373]
[1759239300521,0.71,207.92,207.88,13.59559401]
[1759239300722,3.21428546,207.92,207.88,4.41926373]
[1759239300929,3.41428546,207.94,207.91,4.41926373]
[1759239301104,5.00913719,207.94,207.92,4.41926373]
[1759239301426,0.2,207.94,207.92,4.41926373]
[1759239301631,0.2,207.94,207.9,4.41926373]
[1759239301632,5.00911756,207.94,207.9,4.41926373]
[1759239301927,5.00911756,207.94,207.92,13.59559401]
[1759239302099,0.2,207.94,207.92,13.59559401]
[1759239302304,3.41428546,207.94,207.92,6.50746038]
[1759239302495,0.2,207.94,207.93,20.10305439]
[1759239302696,0.2,207.94,207.92,13.59559401]
[1759239302917,5.71919428,207.94,207.92,13.59559401]
[1759239303231,0.2,207.94,207.92,20.10305439]
[1759239303434,0.2,207.94,207.93,7.17746038]
[1759239304196,5.71907954,207.94,207.9,13.59559401]
[1759239304414,5.71907954,207.94,207.9,6.50746038]
[1759239304608,0.71,207.93,207.8,24.06056595]
[1759239304826,10.43174584,207.93,207.88,13.59559401]
[1759239305033,4.80977345,207.91,207.88,13.59559401]
[1759239305230,4.80977345,207.91,207.83,64.88159629]
[1759239305231,0.71,207.9,207.85,13.59559401]
[1759239305520,3.92428546,207.9,207.85,20.10305439]
[1759239305746,3.21428546,207.93,207.89,13.59559401]
[1759239306031,3.21428546,207.92,207.89,6.50746038]
[1759239306395,3.21428546,207.92,207.89,7.17746038]
[1759239306599,5.00909481,207.94,207.83,37.64067437]
[1759239306600,8.22339463,207.94,207.91,13.59559401]
[1759239307103,0.2,207.94,207.93,20.10305439]
[1759239307328,0.2,207.94,207.93,20.77305439]
[1759239308743,0.2,207.94,207.93,13.59559401]
[1759239309406,0.2,207.94,207.93,20.77305439]
[1759239309824,0.2,207.94,207.93,25.58236521]
[1759239311111,0.2,207.94,207.93,14.26559401]
[1759239311430,0.2,207.94,207.93,20.10305439]
[1759239311629,0.2,207.94,207.93,13.59559401]
[1759239311832,0.2,207.94,207.93,20.10305439]
[1759239312333,0.2,207.94,207.93,20.79305439]
[1759239312533,0.2,207.94,207.93,25.60236521]
[1759239313305,5.45606467,208.08,207.95,13.59559401]
[1759239313527,0.1,208.09,208.05,20.10305439]
[1759239313829,0.1,208.09,208.07,13.59559401]
[1759239314013,0.1,208.09,208.07,20.10305439]
[1759239314432,0.1,208.09,207.95,0.69]
[1759239314433,7.15746038,208.08,207.95,0.69]
[1759239314729,6.50746038,207.98,207.91,0.69]
[1759239315231,0.65,207.99,207.88,6.50746038]
[1759239315232,4.80884828,207.95,207.88,6.50746038]
[1759239315408,6.50746038,207.96,207.88,6.50746038]
[1759239315729,11.31621181,207.96,207.89,14.28559401]
[1759239316122,6.50746038,207.92,207.86,4.81092179]
[1759239316320,6.50746038,207.94,207.87,0.69]
[1759239316511,6.50746038,207.94,207.88,13.59559401]
[1759239316929,0.65,207.94,207.87,20.10305439]
[1759239317237,6.50746038,207.96,207.88,7.19746038]
[1759239317429,7.16746038,207.96,207.88,7.19746038]
[1759239317632,0.66,207.98,207.88,7.19746038]
[1759239317817,6.50746038,207.96,207.88,7.19746038]
[1759239318023,6.50746038,207.97,207.91,13.59559401]
[1759239318317,6.50746038,207.97,207.89,13.59559401]
[1759239318517,3.85806763,208.0,207.91,20.10305439]
[1759239318723,11.97525576,208.0,207.91,20.10305439]
[1759239318928,6.50746038,207.98,207.9,13.59559401]
[1759239319234,5.46813616,207.99,207.91,11.31723383]
[1759239319532,11.97559654,207.99,207.91,11.31723383]
[1759239319832,11.97559654,207.99,207.91,4.80977345]
[1759239320219,0.66,207.99,207.91,4.80977345]
[1759239320521,11.97540434,207.99,207.91,4.80977345]
[1759239320722,3.19806763,207.98,207.91,4.80977345]
[1759239321236,11.3158462,207.97,207.9,13.59559401]
[1759239321540,3.21601799,207.96,207.9,14.28559401]
[1759239321723,3.21601799,207.96,207.9,13.59559401]
[1759239322115,3.21601799,207.97,207.9,20.79305439]
[1759239322319,11.31538926,207.99,207.93,13.59559401]
[1759239322630,3.21779411,207.98,207.93,14.28559401]
[1759239322940,3.21779411,207.97,207.95,13.59559401]
[1759239323128,6.50746038,208.0,207.95,0.69]
[1759239323332,3.21779221,207.99,207.95,14.28559401]
[1759239323636,6.50746038,208.0,207.95,14.28559401]
[1759239323637,3.21779221,207.98,207.95,13.59559401]
[1759239323840,3.21779221,207.97,207.95,13.59559401]
[1759239324028,3.21779221,207.96,207.95,13.59559401]
[1759239324225,3.87779221,207.96,207.95,13.59559401]
[1759239324433,3.87779221,207.96,207.89,13.59559401]
[1759239324626,9.72525259,207.95,207.89,13.59559401]
[1759239324827,3.21779221,207.94,207.89,13.59559401]
[1759239325043,3.21779221,207.93,207.91,13.59559401]
[1759239325235,3.22141073,207.96,207.93,13.59559401]
[1759239325426,3.22141073,207.95,207.93,13.59559401]
[1759239325742,20.8,207.99,207.92,13.59559401]
[1759239326046,9.73041639,207.98,207.92,13.59559401]
[1759239326237,3.22295601,207.97,207.92,13.59559401]
[1759239326449,3.22295601,207.96,207.92,14.28559401]
[1759239326647,3.22295601,207.95,207.92,14.28559401]
[1759239326953,3.22399082,207.94,207.89,20.10305439]
[1759239327159,7.16746038,207.97,207.91,13.59559401]
[1759239327344,3.22403838,207.96,207.92,4.80954213]
[1759239327540,3.22403838,207.95,207.91,13.59559401]
[1759239327748,3.88403838,207.94,207.91,13.59559401]
[1759239328062,4.03914551,207.99,207.92,7.19746038]
[1759239328357,3.22531802,207.98,207.92,7.19746038]
[1759239328560,15.35450649,208.0,207.92,7.19746038]
[1759239328561,3.22531802,207.97,207.92,7.19746038]
[1759239328761,3.22531802,207.96,207.93,0.69]
[1759239328945,3.22531802,207.95,207.93,7.19746038]
[1759239329131,3.22531802,207.94,207.93,6.50746038]
[1759239329329,3.22531802,207.94,207.92,6.50746038]
[1759239329546,4.03914551,208.0,207.94,13.59559401]
[1759239329750,3.22781576,207.99,207.94,13.59559401]
[1759239329955,3.88781576,207.98,207.91,4.80963426]
[1759239330238,8.84689293,208.0,207.92,13.59559401]
[1759239330239,6.50746038,207.95,207.92,13.59559401]
[1759239330432,10.39527614,207.94,207.9,13.59559401]
[1759239330642,3.22781576,207.93,207.9,13.59559401]
[1759239330848,3.22781576,207.92,207.9,13.59559401]
[1759239331052,3.22781576,207.91,207.9,13.59559401]
[1759239331229,7.16746038,207.96,207.9,14.28559401]
[1759239331433,3.22899821,207.95,207.9,19.09559882]
[1759239331633,3.22899821,207.94,207.9,13.59559401]
[1759239331851,3.22899821,207.93,207.9,13.59559401]
[1759239332063,7.16746038,207.96,207.9,13.59559401]
[1759239332064,3.22899821,207.92,207.91,0.69]
[1759239332263,3.22853097,207.96,207.92,13.59559401]
[1759239332464,11.31546218,207.99,207.92,0.69]
[1759239332765,11.31546218,207.99,207.91,20.10305439]
[1759239332766,3.22880495,207.98,207.91,13.59559401]
[1759239332968,9.73626533,207.97,207.91,13.59559401]
[1759239333138,3.22880495,207.96,207.91,20.79305439]
[1759239333332,11.97518965,208.0,207.94,13.59559401]
[1759239333533,14.54496647,207.99,207.94,13.59559401]
[1759239333750,3.229403,207.98,207.94,13.59559401]
[1759239333961,3.229403,207.97,207.92,7.19746038]
[1759239334262,3.229403,207.96,207.91,13.59559401]
[1759239334432,7.16746038,207.97,207.91,13.59559401]
[1759239334635,3.22998454,207.96,207.91,20.10305439]
[1759239334858,6.50746038,207.98,207.91,20.10305439]
[1759239335035,9.7374445,207.97,207.9,20.10305439]
[1759239335234,3.22998412,207.96,207.9,20.10305439]
[1759239335652,8.03880311,207.96,207.9,24.91299363]
[1759239335860,4.80881899,207.96,207.9,24.91299363]
[1759239336246,3.23100027,207.96,207.92,20.10305439]
[1759239336554,9.73846065,207.99,207.94,13.59559401]
[1759239336730,3.23100027,207.98,207.92,7.19746038]
[1759239336931,3.23100027,207.97,207.92,0.69]
[1759239337135,3.23100027,207.96,207.9,18.40551661]
[1759239337332,37.62692306,208.0,207.89,13.59559401]
[1759239337333,10.39846065,207.95,207.89,13.59559401]
[1759239337562,4.80977345,207.91,207.89,13.59559401]
[1759239337747,5.46977345,207.91,207.85,24.91418718]
[1759239337967,27.23266774,207.91,207.84,35.48]
[1759239338264,6.50746038,207.86,207.8,0.69]
[1759239338437,3.89100027,207.9,207.7,12.02374464]
[1759239338438,6.50746038,207.84,207.7,12.02374464]
[1759239338642,6.50746038,207.77,207.7,18.53120502]
[1759239338840,0.66,207.78,207.7,12.02374464]
[1759239339150,6.50746038,207.76,207.7,0.69]
[1759239339359,6.50746038,207.73,207.66,5.50556061]
[1759239339557,4.81370944,207.74,207.66,12.01302099]
[1759239339738,6.50746038,207.73,207.66,12.01302099]
[1759239339935,4.81370944,207.74,207.66,0.69]
[1759239340137,6.50746038,207.72,207.65,4.81570059]
[1759239340363,6.50746038,207.7,207.63,42.04746038]
[1759239340677,6.50746038,207.7,207.63,46.86368855]
[1759239340841,6.50746038,207.72,207.65,6.50746038]
[1759239341040,6.50746038,207.72,207.66,6.50746038]
[1759239341564,11.32140155,207.73,207.67,13.59559401]
[1759239341769,6.50746038,207.72,207.67,13.59559401]
[1759239341956,6.50746038,207.72,207.67,18.41091164]
[1759239342269,6.50746038,207.72,207.67,19.09091164]
[1759239342485,27.30746038,207.74,207.69,13.59559401]
[1759239342662,20.8,207.74,207.69,13.59559401]
[1759239342988,27.30746038,207.74,207.67,12.00277801]
[1759239343186,6.50746038,207.74,207.69,13.59559401]
[1759239343354,0.71,207.76,207.69,13.59559401]
[1759239343355,6.50746038,207.75,207.69,13.59559401]
[1759239343852,0.71,207.79,207.71,13.59559401]
[1759239344053,6.50746038,207.76,207.73,13.59559401]
[1759239344754,6.50746038,207.75,207.73,13.59559401]
[1759239344954,6.50746038,207.74,207.73,13.59559401]
[1759239345276,3.21397799,207.8,207.73,14.27559401]
[1759239345473,6.50746038,207.76,207.73,14.27559401]
[1759239345982,6.50746038,207.76,207.74,4.81370944]
[1759239346188,6.50746038,207.78,207.75,14.27559401]
[1759239346488,0.71,207.84,207.77,13.59559401]
[1759239346665,6.50746038,207.81,207.78,0.68]
[1759239346865,6.50746038,207.81,207.75,13.59559401]
[1759239346866,0.71,207.87,207.79,0.68]
[1759239347065,40.31041468,207.89,207.79,14.27559401]
[1759239347270,6.50746038,207.85,207.79,14.27559401]
[1759239347985,6.50746038,207.88,207.81,20.10305439]
[1759239348152,6.50746038,207.87,207.82,0.68]
[1759239348351,0.71,207.9,207.81,13.59559401]
[1759239348674,6.50746038,207.86,207.82,0.68]
[1759239348972,6.50746038,207.84,207.79,4.81254715]
[1759239349283,6.50746038,207.82,207.79,4.81254715]
[1759239349453,6.50746038,207.83,207.8,13.59559401]
[1759239350089,6.50746038,207.83,207.8,18.40786975]
[1759239350284,6.50746038,207.85,207.82,13.59559401]
[1759239350463,28.82006076,207.88,207.82,13.59559401]
[1759239350464,6.50746038,207.86,207.82,13.59559401]
[1759239350647,6.50746038,207.86,207.8,19.08786975]
[1759239350848,6.50746038,207.88,207.81,20.78305439]
[1759239351054,5.51977854,207.91,207.84,13.59559401]
[1759239351055,6.50746038,207.9,207.84,13.59559401]
[1759239351281,6.50746038,207.9,207.84,14.27559401]
[1759239351660,6.50746038,207.89,207.84,14.27559401]
[1759239351857,6.50746038,207.89,207.83,18.40721889]
[1759239352072,6.50746038,207.89,207.86,13.59559401]
[1759239352378,6.50746038,207.9,207.86,0.68]
[1759239352563,6.50746038,207.9,207.84,13.59559401]
[1759239352761,6.50746038,207.88,207.84,13.59559401]
[1759239352962,6.50746038,207.86,207.84,13.59559401]
[1759239353263,0.71,207.88,207.84,13.59559401]
[1759239353264,6.50746038,207.85,207.84,13.59559401]
[1759239353664,6.50746038,207.85,207.81,13.59559401]
[1759239353868,6.50746038,207.83,207.81,13.59559401]
[1759239354069,6.50746038,207.82,207.78,13.59559401]
[1759239354382,6.50746038,207.83,207.78,13.59559401]
[1759239354587,6.50746038,207.83,207.8,13.59559401]
[1759239355261,6.50746038,207.82,207.78,13.59559401]
[1759239355461,6.50746038,207.81,207.78,13.59559401]
[1759239355863,6.50746038,207.82,207.79,4.81255113]
[1759239356054,6.50746038,207.82,207.78,18.4083613]
[1759239356275,6.50746038,207.81,207.78,13.59559401]
[1759239356483,6.50746038,207.81,207.76,13.59559401]
[1759239356669,6.50746038,207.81,207.76,14.27559401]
[1759239357280,0.71,207.84,207.78,13.59559401]
[1759239357497,6.50746038,207.81,207.75,4.81340948]
[1759239357797,6.50746038,207.78,207.76,13.59559401]
[1759239357997,6.50746038,207.77,207.76,13.59559401]
[1759239358298,6.50746038,207.78,207.75,13.59559401]
[1759239358476,6.50746038,207.79,207.75,13.59559401]
[1759239358676,6.50746038,207.78,207.74,13.59559401]
[1759239358980,6.50746038,207.77,207.74,13.59559401]
[1759239359176,6.50746038,207.76,207.71,18.40992737]
[1759239359373,6.50746038,207.77,207.73,13.59559401]
[1759239359584,6.50746038,207.76,207.71,13.59559401]
[1759239359987,6.50746038,207.76,207.71,14.27559401]
[1759239360493,6.50746038,207.77,207.71,18.40986273]
[1759239360670,6.50746038,207.77,207.73,13.59559401]
[1759239360865,7.21746038,207.76,207.71,4.81426872]
[1759239361075,6.50746038,207.76,207.71,5.49426872]
[1759239361287,6.50746038,207.77,207.73,13.59559401]
[1759239361681,6.50746038,207.76,207.69,12.0021139]
[1759239361883,6.50746038,207.73,207.68,13.59559401]
[1759239362068,6.50746038,207.72,207.68,13.59559401]
[1759239362273,6.50746038,207.7,207.63,0.68]
[1759239362490,6.50746038,207.7,207.64,18.41162175]
[1759239362693,20.8,207.76,207.68,20.10305439]
[1759239362878,20.8,207.76,207.68,14.27559401]
[1759239363074,6.50746038,207.71,207.64,5.49602774]
[1759239363273,6.50746038,207.69,207.64,0.68]
[1759239363471,6.50746038,207.67,207.57,35.36]
[1759239363672,6.50746038,207.68,207.63,0.68]
[1759239363875,6.50746038,207.7,207.65,13.59559401]
[1759239364081,6.50746038,207.7,207.65,14.27559401]
[1759239364287,4.41379023,207.7,207.67,13.59559401]
[1759239364475,4.41379023,207.69,207.67,13.59559401]
[1759239364676,4.41379023,207.69,207.64,13.59559401]
[1759239365199,4.41379023,207.69,207.63,13.59559401]
[1759239365200,4.41379023,207.67,207.63,13.59559401]
[1759239365372,4.41379023,207.68,207.63,13.59559401]
[1759239365582,4.41379023,207.71,207.64,5.09379023]
[1759239366092,4.41379023,207.71,207.64,0.68]
[1759239366295,4.41379023,207.7,207.64,0.68]
[1759239366486,4.41379023,207.7,207.64,5.4958506]
[1759239367398,0.71,207.77,207.66,13.59559401]
[1759239367611,4.41379023,207.72,207.66,13.59559401]
[1759239367900,4.41379023,207.69,207.64,4.8158506]
[1759239368076,4.41379023,207.69,207.65,13.59559401]
[1759239368402,3.9166672,207.76,207.66,0.68]
[1759239368591,4.41379023,207.71,207.66,5.49539505]
[1759239368790,4.41379023,207.71,207.68,13.59559401]
[1759239368976,5.12379023,207.71,207.65,13.59559401]
[1759239369285,4.41379023,207.71,207.65,13.59559401]
[1759239369701,36.07,207.75,207.67,13.59559401]
[1759239370079,4.41379023,207.73,207.68,0.68]
[1759239370699,8.73021238,207.75,207.7,13.59559401]
[1759239370700,7.620469,207.75,207.7,13.59559401]
[1759239371000,3.20667877,207.82,207.74,18.00938424]
[1759239371312,3.20667877,207.82,207.7,20.8]
[1759239371313,3.20667877,207.81,207.76,13.59559401]
[1759239371474,7.620469,207.81,207.78,13.59559401]
[1759239371680,4.41379023,207.81,207.78,13.59559401]
[1759239372388,7.620469,207.84,207.8,13.59559401]
[1759239372591,4.41379023,207.81,207.77,13.59559401]
[1759239372784,4.41379023,207.78,207.71,0.68]
[1759239373019,4.41379023,207.74,207.67,5.09379023]
[1759239373318,4.41379023,207.74,207.68,13.59559401]
[1759239373901,4.41379023,207.74,207.68,18.00938424]
[1759239374215,4.41379023,207.74,207.7,13.59559401]
[1759239374381,4.41379023,207.76,207.7,13.59559401]
[1759239374577,4.41379023,207.76,207.72,13.59559401]
[1759239374814,4.41379023,207.77,207.71,13.59559401]
[1759239374983,4.41379023,207.77,207.74,13.59559401]
[1759239375177,4.41379023,207.76,207.71,0.68]
[1759239375402,4.41379023,207.75,207.7,13.59559401]
[1759239375678,4.41379023,207.73,207.7,13.59559401]
[1759239375910,4.41379023,207.72,207.67,18.41069533]
[1759239376095,0.67,207.73,207.69,13.59559401]
[1759239376096,4.41379023,207.73,207.69,13.59559401]
[1759239376412,4.41379023,207.72,207.68,13.59559401]
[1759239376587,4.41379023,207.73,207.68,13.59559401]
[1759239376785,4.41379023,207.73,207.69,0.72]
[1759239377084,4.41379023,207.73,207.67,18.41088307]
[1759239377278,3.88667877,207.74,207.67,18.41091425]
[1759239377487,4.41379023,207.73,207.67,18.41091425]
[1759239377684,4.41379023,207.73,207.67,4.81532024]
[1759239377887,4.41379023,207.73,207.68,13.59559401]
[1759239378113,5.09379023,207.73,207.68,13.59559401]
[1759239378303,4.41379023,207.71,207.66,0.72]
[1759239378489,4.41379023,207.71,207.67,13.59559401]
[1759239378803,8.02046637,207.74,207.68,0.72]
[1759239378988,3.20667877,207.73,207.68,0.72]
[1759239379186,3.20667877,207.72,207.69,0.72]
[1759239379386,5.09379023,207.73,207.67,18.00938424]
[1759239379588,3.2208275,207.72,207.67,13.59559401]
[1759239379796,5.09379023,207.73,207.68,0.72]
[1759239379797,4.41379023,207.73,207.68,0.72]
[1759239379998,3.22082793,207.72,207.68,0.72]
[1759239380196,4.41379023,207.73,207.68,5.53496767]
[1759239380500,3.22327584,207.72,207.68,5.53496767]
[1759239380702,3.22327584,207.71,207.68,5.53496767]
[1759239380907,4.41379023,207.74,207.69,0.72]
[1759239381094,3.22325182,207.73,207.71,13.59559401]
[1759239381288,3.22325182,207.72,207.67,13.59559401]
[1759239381490,3.22325182,207.72,207.66,4.41379023]
[1759239381491,3.22325182,207.71,207.69,13.59559401]
[1759239381705,4.41379023,207.73,207.69,13.59559401]
[1759239381900,3.22619032,207.72,207.67,18.00938424]
[1759239382194,4.41379023,207.74,207.67,5.13379023]
[1759239382400,3.22636018,207.73,207.68,13.59559401]
[1759239382714,4.03914551,207.77,207.73,13.59559401]
[1759239382908,8.85009444,207.86,207.77,13.59559401]
[1759239383205,0.68,207.87,207.81,13.59559401]
[1759239383420,4.03914551,207.89,207.84,4.41379023]
[1759239383618,4.03914551,207.9,207.84,4.41379023]
[1759239383791,9.9035773,207.91,207.88,4.41379023]
[1759239383792,4.71914551,207.91,207.88,4.41379023]
[1759239383997,36.1,207.93,207.89,4.41379023]
[1759239384229,35.42,207.93,207.89,4.41379023]
[1759239384396,5.4895428,207.92,207.88,4.41379023]
[1759239384726,12.02182579,207.96,207.86,4.81075727]
[1759239384727,0.68,207.94,207.91,4.41379023]
[1759239385027,0.68,207.97,207.93,4.41379023]
[1759239385192,0.68,207.97,207.87,13.59559401]
[1759239385193,0.68,207.96,207.91,13.59559401]
[1759239385393,0.68,207.95,207.91,13.59559401]
[1759239385619,0.68,207.94,207.91,13.59559401]
[1759239385795,0.68,207.94,207.91,4.41379023]
[1759239386005,5.48855941,207.97,207.91,4.41379023]
[1759239386197,26.28855941,207.97,207.91,4.41379023]
[1759239386393,0.68,207.96,207.92,4.41379023]
[1759239387209,0.68,207.95,207.87,13.59559401]
[1759239387520,0.68,207.95,207.92,13.59559401]
[1759239387715,0.68,207.95,207.92,4.41379023]
[1759239388216,4.80792755,207.99,207.94,4.41379023]
[1759239388418,0.68,207.98,207.93,13.59559401]
[1759239388626,35.42,208.0,207.94,4.41379023]
[1759239388828,0.68,208.01,207.97,4.41379023]
[1759239389040,0.68,208.0,207.93,13.59559401]
[1759239389397,0.68,208.0,207.96,18.00938424]
[1759239389615,4.41379023,208.03,207.96,18.00938424]
[1759239389894,35.38,208.05,208.0,4.41379023]
[1759239390093,35.38,208.05,207.99,18.00938424]
[1759239390094,5.48677591,208.04,207.99,18.00938424]
[1759239390319,5.48677591,208.04,207.97,13.59559401]
[1759239390320,5.09379023,208.03,207.97,13.59559401]
[1759239390503,4.41379023,208.01,207.95,13.59559401]
[1759239390694,0.68,208.0,207.95,13.59559401]
[1759239391043,0.68,208.03,207.98,4.41379023]
[1759239391215,0.68,208.03,207.97,13.59559401]
[1759239391216,35.38,208.05,208.0,4.41379023]
[1759239391407,0.68,208.07,207.93,20.8]
[1759239391408,0.68,208.07,208.04,4.41379023]
[1759239391739,4.90565885,208.09,208.05,18.00938424]
[1759239391893,4.90565885,208.09,207.96,56.22]
[1759239391894,0.68,208.08,207.97,13.59559401]
[1759239392098,0.68,208.08,208.05,4.41379023]
[1759239392340,0.1,208.09,208.07,4.41379023]
[1759239392703,0.1,208.09,208.08,4.41379023]
[1759239392906,0.1,208.09,208.08,18.00938424]
[1759239393631,0.1,208.09,208.07,4.41379023]
[1759239393838,0.78,208.09,208.07,13.59559401]
[1759239394003,0.1,208.09,208.07,13.59559401]
[1759239394204,0.1,208.09,208.07,18.00938424]
[1759239394401,0.1,208.09,208.08,4.41379023]
[1759239394620,0.1,208.09,208.04,25.60660007]
[1759239394821,0.78,208.09,208.06,4.41379023]
[1759239395166,0.1,208.09,208.08,4.41379023]
[1759239396017,0.1,208.09,208.08,18.00938424]
[1759239396201,0.1,208.09,208.08,22.81522814]
[1759239396931,1e-08,208.09,208.08,58.19522814]
[1759239398250,0.2,208.15,208.14,13.59559401]
[1759239398438,0.2,208.15,208.14,18.00938424]
[1759239398802,0.2,208.15,208.14,13.59559401]
[1759239399022,0.88,208.15,208.14,13.59559401]
[1759239399226,5.68423243,208.15,207.97,24.04182041]
[1759239399406,0.68,208.14,208.09,13.59559401]
[1759239399612,9.41802266,208.15,208.09,13.59559401]
[1759239399613,0.68,208.13,208.09,13.59559401]
[1759239399810,0.68,208.12,208.09,13.59559401]
[1759239400009,0.68,208.11,208.08,13.59559401]
[1759239400218,0.68,208.1,208.08,13.59559401]
[1759239400734,4.41379023,208.13,208.08,13.59559401]
[1759239400939,4.41379023,208.13,208.07,4.41379023]
[1759239400940,0.68,208.09,208.07,4.41379023]